[Event "71st RUS-ch Higher League 2018"]
[Site "Yaroslavl"]
[Date "2018.06.30"]
[Round "5"]
[White "Lysyj, Igor"]
[Black "Usmanov, Vasily"]
[Result "1-0"]
[ECO "A40"]
[WhiteElo "2630"]
[BlackElo "2477"]
[Annotator "ChessBase"]
[PlyCount "113"]
[EventDate "2018.06.26"]
[EventType "swiss"]
[EventCountry "RUS"]
[SourceTitle "playchess.com"]
[Source "ChessBase"]
[SourceQuality "1"]
[TimeControl "40/5400+30:1800+30"]

1. d4 {[%emt 0:00:00]} Nf6 {[%emt 0:00:00]} 2. c4 {[%emt 0:00:00]} e6 {[%emt 0:00:00]} 3. g3 {[%emt 0:00:00]} Bb4+ {[%emt 0:00:40]} 4. Bd2 {[%emt 0:00:02]} Qe7 {[%emt 0:00:18]} 5. Bg2 {[%emt 0:00:17]} Bxd2+ {[%emt 0:01:27]} 6. Qxd2 {[%emt 0:00:25]} d5 {[%emt 0:08:25]} 7. Nf3 {[%emt 0:00:45]} O-O {[%emt 0:04:16]} 8. O-O {[%emt 0:00:38]} Rd8 {[%emt 0:00:18]} 9. Qc2 {[%emt 0:23:57]} c5 {[%emt 0:21:25]} 10. cxd5 {[%emt 0:15:21]} cxd4 {[%emt 0:00:04]} 11. Nxd4 {[%emt 0:01:06]} Nxd5 {[%emt 0:00:07]} 12. Rc1 {[%emt 0:14:25]} Nb4 {[%emt 0:02:44]} 13. Qc3 {[%emt 0:06:54]} N8c6 {[%emt 0:04:55]} 14. Nxc6 {[%emt 0:00:14]} Nxc6 {[%emt 0:00:06]} 15. Bxc6 {[%emt 0:00:17]} bxc6 {[%emt 0:00:05]} 16. Nd2 {[%emt 0:09:44]} Ba6 {[%emt 0:00:07]} 17. Qe3 {[%emt 0:00:14]} Qb4 {[%emt 0:05:44]} 18. Rc2 {[%emt 0:00:56]} Qb6 {[%emt 0:05:53]} 19. Nb3 {[%emt 0:01:00]} Qxe3 {[%emt 0:00:45]} 20. fxe3 {[%emt 0:00:42]} Rd5 {[%emt 0:00:12]} 21. Rac1 {[%emt 0:05:06]} Rb8 {[%emt 0:08:08]} 22. Nc5 {[%emt 0:04:20]} Bc8 {[%emt 0:03:04]} 23. b3 {[%emt 0:03:26]} Kf8 {[%emt 0:00:55]} 24. Nd3 {[%emt 0:00:56]} Bd7 {[%emt 0:00:10]} 25. Rc4 {[%emt 0:00:18]} Ke7 {[%emt 0:01:49]} 26. Ra4 {[%emt 0:01:00]} a5 {[%emt 0:00:45]} 27. e4 {[%emt 0:00:28]} Rdb5 {[%emt 0:00:18]} 28. e5 {[%emt 0:00:53]} h5 {[%emt 0:01:49]} 29. Rh4 {[%emt 0:01:17]} Rh8 {[%emt 0:01:29]} 30. Rc5 {[%emt 0:01:47]} f6 {[%emt 0:01:06]} 31. exf6+ {[%emt 0:01:15]} gxf6 {[%emt 0:00:07]} 32. Ra4 {[%emt 0:00:04]} Ra8 {[%emt 0:02:50]} 33. b4 {[%emt 0:00:09]} Kd6 {[%emt 0:00:03]} 34. Rxb5 {[%emt 0:00:35]} cxb5 {[%emt 0:00:04]} 35. Rxa5 {[%emt 0:00:08]} Rh8 {[%emt 0:02:04]} 36. Ra6+ {[%emt 0:01:45]} Bc6 {[%emt 0:00:09]} 37. a4 {[%emt 0:00:40]} Rb8 {[%emt 0:01:38]} 38. a5 {[%emt 0:00:39]} e5 {[%emt 0:00:49]} 39. Ra7 {[%emt 0:03:10]} h4 {[%emt 0:02:20]} 40. Rf7 {[%emt 0:00:00]} Ke6 {[%emt 0:00:00]} 41. Rh7 {[%emt 0:05:09]} hxg3 {[%emt 0:01:43]} 42. hxg3 {[%emt 0:00:36]} Rg8 {[%emt 0:01:39]} 43. Kf2 {[%emt 0:00:08]} Kd5 {[%emt 0:01:21]} 44. a6 {[%emt 0:05:57]} Kd4 {[%emt 0:05:43]} 45. Rc7 {[%emt 0:04:25]} Ba8 {[%emt 0:00:53]} 46. Ne1 {[%emt 0:05:32]} Rh8 {[%emt 0:03:12]} 47. Nc2+ {[%emt 0:00:05]} Ke4 {[%emt 0:00:33]} 48. Rc5 {[%emt 0:00:37]} Bd5 {[%emt 0:04:22]} 49. Ne3 {[%emt 0:01:03]} Ba8 {[%emt 0:00:40]} 50. Nd1 {[%emt 0:02:12]} Kd4 {[%emt 0:01:40]} 51. Nc3 {[%emt 0:01:29]} Rh2+ {[%emt 0:00:04]} 52. Ke1 {[%emt 0:00:07]} Ke3 {[%emt 0:00:42]} 53. Nd1+ {[%emt 0:00:11]} Kd4 {[%emt 0:00:04]} 54. Rc8 {[%emt 0:01:01]} Be4 {[%emt 0:00:56]} 55. a7 {[%emt 0:00:39]} Rg2 {[%emt 0:00:06]} 56. e3+ {[%emt 0:00:31]} Kd3 {[%emt 0:00:06]} 57. Rc3# {[%emt 0:00:05]} 1-0

[Event "71st RUS-ch Higher League 2018"]
[Site "Yaroslavl"]
[Date "2018.06.30"]
[Round "5"]
[White "Khismatullin, Denis"]
[Black "Pridorozhni, Aleksei"]
[Result "1/2-1/2"]
[ECO "A04"]
[WhiteElo "2627"]
[BlackElo "2589"]
[Annotator "ChessBase"]
[PlyCount "117"]
[EventDate "2018.06.26"]
[EventType "swiss"]
[EventCountry "RUS"]
[SourceTitle "playchess.com"]
[Source "ChessBase"]
[SourceQuality "1"]
[TimeControl "40/5400+30:1800+30"]

1. Nf3 {[%emt 0:00:49]} e6 {[%emt 0:00:00]} 2. g3 {[%emt 0:00:05]} b5 {[%emt 0:00:23]} 3. e4 {[%emt 0:03:05]} Bb7 {[%emt 0:00:17]} 4. Qe2 {[%emt 0:00:05]} c5 {[%emt 0:01:16]} 5. Bg2 {[%emt 0:01:33]} a6 {[%emt 0:03:09]} 6. O-O {[%emt 0:01:13]} Nc6 {[%emt 0:04:16]} 7. Rd1 {[%emt 0:07:12]} Nd4 {[%emt 0:08:37]} 8. Nxd4 {[%emt 0:03:49]} cxd4 {[%emt 0:00:18]} 9. c3 {[%emt 0:01:21]} Bc5 {[%emt 0:00:48]} 10. b4 {[%emt 0:07:38]} Bb6 {[%emt 0:00:43]} 11. a4 {[%emt 0:02:20]} bxa4 {[%emt 0:00:55]} 12. Rxa4 {[%emt 0:09:18]} Ne7 {[%emt 0:06:17]} 13. c4 {[%emt 0:02:03]} d6 {[%emt 0:10:11]} 14. d3 {[%emt 0:02:17]} O-O {[%emt 0:01:05]} 15. Nd2 {[%emt 0:06:55]} Qd7 {[%emt 0:12:52]} 16. Ra1 {[%emt 0:01:28]} Nc6 {[%emt 0:01:35]} 17. Ba3 {[%emt 0:01:19]} e5 {[%emt 0:00:25]} 18. c5 {[%emt 0:10:08]} dxc5 {[%emt 0:08:26]} 19. bxc5 {[%emt 0:02:14]} Bc7 {[%emt 0:00:21]} 20. Nc4 {[%emt 0:00:36]} Rfb8 {[%emt 0:02:13]} 21. Nb6 {[%emt 0:05:11]} Bxb6 {[%emt 0:00:15]} 22. cxb6 {[%emt 0:00:05]} a5 {[%emt 0:02:11]} 23. Qc2 {[%emt 0:14:43]} Qe6 {[%emt 0:18:51]} 24. Qc5 {[%emt 0:04:14]} h6 {[%emt 0:00:56]} 25. Rab1 {[%emt 0:02:14]} Rd8 {[%emt 0:00:33]} 26. Rdc1 {[%emt 0:01:13]} a4 {[%emt 0:03:53]} 27. Qd5 {[%emt 0:04:33]} Qf6 {[%emt 0:03:42]} 28. Qb5 {[%emt 0:01:09]} Qe6 {[%emt 0:00:20]} 29. Qc4 {[%emt 0:01:47]} Qd7 {[%emt 0:00:31]} 30. h4 g5 31. hxg5 {[%emt 0:02:00]} hxg5 {[%emt 0:00:58]} 32. Rb2 {[%emt 0:01:02]} Kg7 {[%emt 0:01:23]} 33. Qc2 {[%emt 0:01:25]} Qe6 {[%emt 0:03:37]} 34. Rb5 {[%emt 0:00:49]} f6 {[%emt 0:00:24]} 35. Rc5 {[%emt 0:00:41]} Rdc8 {[%emt 0:01:33]} 36. Qd1 {[%emt 0:00:43]} Ra6 {[%emt 0:01:15]} 37. Rb5 {[%emt 0:00:36]} Ne7 {[%emt 0:01:43]} 38. Rc7 {[%emt 0:00:01]} Rxc7 {[%emt 0:00:40]} 39. bxc7 Bc6 {[%emt 0:00:43]} 40. Rb8 {[%emt 0:00:00]} Nc8 {[%emt 0:00:00]} 41. Bf3 {[%emt 0:25:38]} Bd7 42. Rb2 {[%emt 0:02:23]} Rc6 {[%emt 0:03:51]} 43. Rc2 {[%emt 0:00:27]} Rb6 44. Rc1 Rb3 {[%emt 0:11:38]} 45. Bc5 {[%emt 0:03:48]} Rb2 46. Qe1 Rb3 {[%emt 0:02:07]} 47. Qd2 {[%emt 0:02:45]} Qa6 {[%emt 0:01:14]} 48. Be2 {[%emt 0:00:30]} Qb5 {[%emt 0:00:41]} 49. Qd1 {[%emt 0:00:31]} a3 50. Bg4 Rxd3 {[%emt 0:05:12]} 51. Qe2 {[%emt 0:00:36]} Bxg4 {[%emt 0:06:37]} 52. Qxg4 {[%emt 0:00:14]} Qe8 {[%emt 0:00:05]} 53. Kg2 {[%emt 0:01:07]} Rc3 {[%emt 0:01:21]} 54. Rh1 {[%emt 0:00:30]} Rxc5 {[%emt 0:02:31]} 55. Qf5 {[%emt 0:00:29]} Qg8 {[%emt 0:00:06]} 56. Qd7+ {[%emt 0:00:30]} Kg6 {[%emt 0:00:05]} 57. Qf5+ {[%emt 0:00:33]} Kg7 {[%emt 0:00:04]} 58. Qd7+ {[%emt 0:00:22]} Kg6 {[%emt 0:00:04]} 59. Qf5+ {[%emt 0:00:39]} 1/2-1/2

[Event "71st RUS-ch Higher League 2018"]
[Site "Yaroslavl"]
[Date "2018.06.30"]
[Round "5"]
[White "Alekseenko, Kirill"]
[Black "Lomasov, Semen"]
[Result "1-0"]
[ECO "C07"]
[WhiteElo "2621"]
[BlackElo "2549"]
[Annotator "ChessBase"]
[PlyCount "49"]
[EventDate "2018.06.26"]
[EventType "swiss"]
[EventCountry "RUS"]
[SourceTitle "playchess.com"]
[Source "ChessBase"]
[SourceQuality "1"]
[TimeControl "40/5400+30:1800+30"]

1. e4 {[%emt 0:00:00]} e6 {[%emt 0:00:00]} 2. d4 {[%emt 0:00:03]} d5 {[%emt 0:00:00]} 3. Nd2 {[%emt 0:00:13]} c5 {[%emt 0:00:00]} 4. exd5 {[%emt 0:00:30]} Qxd5 {[%emt 0:00:00]} 5. Ngf3 {[%emt 0:00:19]} cxd4 {[%emt 0:00:04]} 6. Bc4 {[%emt 0:00:27]} Qd7 {[%emt 0:00:06]} 7. O-O {[%emt 0:01:38]} Nc6 {[%emt 0:00:06]} 8. Nb3 {[%emt 0:01:22]} Nf6 {[%emt 0:00:09]} 9. Nbxd4 {[%emt 0:01:16]} Nxd4 {[%emt 0:00:21]} 10. Nxd4 {[%emt 0:00:09]} a6 {[%emt 0:00:06]} 11. Re1 {[%emt 0:01:08]} b5 {[%emt 0:00:55]} 12. Bb3 {[%emt 0:07:04]} Bb7 {[%emt 0:00:35]} 13. c3 {[%emt 0:01:46]} Bc5 {[%emt 0:06:04]} 14. Bf4 {[%emt 0:08:14]} Bxd4 {[%emt 0:10:31]} 15. cxd4 {[%emt 0:01:51]} Bd5 {[%emt 0:00:48]} 16. Be5 {[%emt 0:04:39]} Rc8 {[%emt 0:31:51]} 17. Qd2 {[%emt 0:14:15]} Qb7 {[%emt 0:14:21]} 18. Qg5 {[%emt 0:02:35]} Bxb3 {[%emt 0:00:33]} 19. axb3 {[%emt 0:00:31]} h6 {[%emt 0:00:36]} 20. Qg3 {[%emt 0:00:59]} Nh5 {[%emt 0:03:23]} 21. Qh4 {[%emt 0:06:59]} Nf6 {[%emt 0:01:52]} 22. Bxf6 {[%emt 0:00:10]} gxf6 {[%emt 0:00:05]} 23. Qxf6 {[%emt 0:00:10]} Rg8 {[%emt 0:00:12]} 24. g3 {[%emt 0:00:15]} h5 {[%emt 0:02:32]} 25. Qf5 {[%emt 0:01:36]} 1-0

[Event "71st RUS-ch Higher League 2018"]
[Site "Yaroslavl"]
[Date "2018.06.30"]
[Round "5"]
[White "Predke, Alexandr"]
[Black "Goryachkina, Aleksandra"]
[Result "1/2-1/2"]
[ECO "C11"]
[WhiteElo "2613"]
[BlackElo "2505"]
[Annotator "ChessBase"]
[PlyCount "71"]
[EventDate "2018.06.26"]
[EventType "swiss"]
[EventCountry "RUS"]
[SourceTitle "playchess.com"]
[Source "ChessBase"]
[SourceQuality "1"]
[TimeControl "40/5400+30:1800+30"]

1. e4 {[%emt 0:00:00]} e6 {[%emt 0:00:00]} 2. d4 {[%emt 0:00:00]} d5 {[%emt 0:00:00]} 3. Nc3 {[%emt 0:00:01]} Nf6 {[%emt 0:00:00]} 4. e5 {[%emt 0:00:07]} Nfd7 {[%emt 0:00:12]} 5. f4 {[%emt 0:00:07]} c5 {[%emt 0:00:05]} 6. Nf3 {[%emt 0:00:06]} Nc6 {[%emt 0:00:08]} 7. Be3 {[%emt 0:00:09]} a6 {[%emt 0:00:30]} 8. Qd2 {[%emt 0:01:24]} b5 {[%emt 0:00:35]} 9. a3 {[%emt 0:00:10]} Qa5 {[%emt 0:01:43]} 10. Be2 {[%emt 0:00:34]} b4 {[%emt 0:01:55]} 11. Nb1 {[%emt 0:00:26]} c4 {[%emt 0:07:05]} 12. c3 {[%emt 0:00:38]} b3 {[%emt 0:03:41]} 13. O-O {[%emt 0:02:08]} Nb6 {[%emt 0:01:57]} 14. Qc1 {[%emt 0:06:25]} Bd7 {[%emt 0:02:02]} 15. Nbd2 {[%emt 0:01:32]} Be7 {[%emt 0:01:14]} 16. Bf2 {[%emt 0:00:42]} O-O-O {[%emt 0:08:14]} 17. Bh4 {[%emt 0:01:35]} h6 {[%emt 0:02:34]} 18. Bxe7 {[%emt 0:04:29]} Nxe7 {[%emt 0:00:06]} 19. Rf2 {[%emt 0:00:44]} Ba4 {[%emt 0:13:36]} 20. Nf1 {[%emt 0:01:13]} Qb5 {[%emt 0:00:23]} 21. g4 {[%emt 0:06:43]} f5 {[%emt 0:07:16]} 22. exf6 {[%emt 0:05:12]} gxf6 {[%emt 0:00:09]} 23. Qe3 {[%emt 0:00:51]} Qd7 {[%emt 0:02:00]} 24. Ng3 {[%emt 0:01:38]} h5 {[%emt 0:10:15]} 25. Nxh5 {[%emt 0:03:27]} Rxh5 {[%emt 0:01:47]} 26. gxh5 {[%emt 0:00:12]} Nf5 {[%emt 0:00:22]} 27. Qd2 {[%emt 0:02:22]} Qh7 {[%emt 0:00:45]} 28. Rg2 {[%emt 0:10:25]} Be8 {[%emt 0:01:16]} 29. Re1 {[%emt 0:00:53]} Bxh5 {[%emt 0:02:46]} 30. Bd1 {[%emt 0:01:45]} Bf7 {[%emt 0:01:23]} 31. Qe2 {[%emt 0:07:58]} Kb7 {[%emt 0:01:10]} 32. Nd2 {[%emt 0:00:58]} Nh4 {[%emt 0:10:36]} 33. Rg3 {[%emt 0:00:09]} Nf5 {[%emt 0:00:36]} 34. Rg2 {[%emt 0:00:07]} Nh4 {[%emt 0:00:09]} 35. Rg3 {[%emt 0:00:44]} Nf5 {[%emt 0:00:17]} 36. Rg2 {[%emt 0:00:04]} 1/2-1/2

[Event "71st RUS-ch Higher League 2018"]
[Site "Yaroslavl"]
[Date "2018.06.30"]
[Round "5"]
[White "Popov, Ivan"]
[Black "Motylev, Alexander"]
[Result "1/2-1/2"]
[ECO "C47"]
[WhiteElo "2609"]
[BlackElo "2659"]
[Annotator "ChessBase"]
[PlyCount "81"]
[EventDate "2018.06.26"]
[EventType "swiss"]
[EventCountry "RUS"]
[SourceTitle "playchess.com"]
[Source "ChessBase"]
[SourceQuality "1"]
[TimeControl "40/5400+30:1800+30"]

1. e4 {[%emt 0:00:00]} e5 {[%emt 0:00:00]} 2. Nf3 {[%emt 0:00:00]} Nc6 {[%emt 0:00:00]} 3. d4 {[%emt 0:03:09]} exd4 {[%emt 0:00:24]} 4. Nxd4 {[%emt 0:00:06]} Nf6 {[%emt 0:00:05]} 5. Nc3 {[%emt 0:01:15]} Bb4 {[%emt 0:00:49]} 6. Nxc6 {[%emt 0:00:10]} bxc6 {[%emt 0:00:09]} 7. Bd3 {[%emt 0:00:08]} d5 {[%emt 0:01:19]} 8. exd5 {[%emt 0:00:09]} O-O {[%emt 0:00:57]} 9. O-O {[%emt 0:00:08]} Bg4 {[%emt 0:01:01]} 10. f3 {[%emt 0:03:56]} Bh5 {[%emt 0:00:43]} 11. Bg5 {[%emt 0:15:31]} cxd5 {[%emt 0:05:57]} 12. Nxd5 {[%emt 0:12:45]} Qxd5 {[%emt 0:04:06]} 13. Bxf6 {[%emt 0:00:07]} Qc5+ {[%emt 0:00:56]} 14. Kh1 {[%emt 0:00:07]} gxf6 {[%emt 0:01:02]} 15. a3 {[%emt 0:00:06]} Ba5 {[%emt 0:03:43]} 16. b4 {[%emt 0:00:07]} Bxb4 {[%emt 0:00:37]} 17. axb4 {[%emt 0:00:05]} Qxb4 {[%emt 0:00:11]} 18. Ra6 {[%emt 0:00:40]} Qc3 {[%emt 0:07:40]} 19. Qa1 {[%emt 0:04:37]} Qxa1 {[%emt 0:01:33]} 20. Rfxa1 {[%emt 0:00:06]} Bg6 {[%emt 0:01:40]} 21. Rxa7 {[%emt 0:02:36]} Rxa7 {[%emt 0:02:12]} 22. Rxa7 {[%emt 0:00:05]} Bxd3 {[%emt 0:07:42]} 23. cxd3 {[%emt 0:00:10]} Rb8 {[%emt 0:00:48]} 24. g4 {[%emt 0:04:25]} Rb3 {[%emt 0:01:18]} 25. Rxc7 {[%emt 0:00:06]} Rxd3 {[%emt 0:00:08]} 26. Kg2 {[%emt 0:00:03]} Kg7 {[%emt 0:00:24]} 27. Kg3 {[%emt 0:00:06]} h6 {[%emt 0:00:31]} 28. h4 {[%emt 0:00:06]} Rd4 {[%emt 0:00:19]} 29. Rc5 {[%emt 0:00:11]} Rb4 {[%emt 0:00:09]} 30. g5 {[%emt 0:00:22]} fxg5 {[%emt 0:00:10]} 31. hxg5 {[%emt 0:00:03]} hxg5 {[%emt 0:00:06]} 32. Rxg5+ {[%emt 0:00:02]} Kf6 {[%emt 0:00:06]} 33. Rg4 {[%emt 0:00:05]} Rb3 {[%emt 0:00:20]} 34. Rf4+ {[%emt 0:00:07]} Kg6 {[%emt 0:00:05]} 35. Rg4+ {[%emt 0:00:05]} Kf6 {[%emt 0:00:03]} 36. Ra4 {[%emt 0:00:06]} Kg6 {[%emt 0:00:09]} 37. Kg4 {[%emt 0:00:08]} Rb1 {[%emt 0:00:12]} 38. Ra6+ {[%emt 0:00:09]} f6 {[%emt 0:00:05]} 39. Ra4 {[%emt 0:00:04]} Rg1+ {[%emt 0:00:12]} 40. Kf4 {[%emt 0:00:00]} Rb1 {[%emt 0:00:00]} 41. Ke4 1/2-1/2

[Event "71st RUS-ch Higher League 2018"]
[Site "Yaroslavl"]
[Date "2018.06.30"]
[Round "5"]
[White "Turov, Maxim"]
[Black "Gaifullin, Artur"]
[Result "0-1"]
[ECO "B12"]
[WhiteElo "2600"]
[BlackElo "2448"]
[Annotator "ChessBase"]
[PlyCount "42"]
[EventDate "2018.06.26"]
[EventType "swiss"]
[EventCountry "RUS"]
[SourceTitle "playchess.com"]
[Source "ChessBase"]
[SourceQuality "1"]
[TimeControl "40/5400+30:1800+30"]

1. e4 {[%emt 0:00:00]} c6 {[%emt 0:00:00]} 2. d4 {[%emt 0:00:00]} d5 {[%emt 0:00:00]} 3. e5 {[%emt 0:00:00]} Bf5 {[%emt 0:00:00]} 4. Nf3 {[%emt 0:00:00]} e6 {[%emt 0:00:00]} 5. Be2 {[%emt 0:00:00]} Nd7 {[%emt 0:00:28]} 6. O-O {[%emt 0:00:52]} h6 {[%emt 0:00:07]} 7. Nbd2 {[%emt 0:00:37]} Ne7 {[%emt 0:00:14]} 8. c3 {[%emt 0:00:23]} g5 {[%emt 0:00:32]} 9. Re1 {[%emt 0:00:16]} Bg6 {[%emt 0:11:37]} 10. Nf1 {[%emt 0:03:14]} Nf5 {[%emt 0:00:21]} 11. Ng3 {[%emt 0:13:05]} g4 {[%emt 0:11:44]} 12. Nd2 {[%emt 0:00:09]} Nxg3 {[%emt 0:00:05]} 13. fxg3 {[%emt 0:00:03]} Qb6 {[%emt 0:06:49]} 14. Bxg4 {[%emt 0:08:17]} h5 {[%emt 0:00:05]} 15. Bf3 {[%emt 0:01:13]} c5 {[%emt 0:08:04]} 16. c4 {[%emt 0:08:19]} cxd4 {[%emt 0:08:15]} 17. cxd5 {[%emt 0:00:09]} Bc2 {[%emt 0:00:41]} 18. dxe6 {[%emt 0:21:20]} d3+ {[%emt 0:01:38]} 19. Kh1 {[%emt 0:00:06]} Qxe6 {[%emt 0:00:10]} 20. Bxb7 {[%emt 0:00:25]} Bxd1 {[%emt 0:00:13]} 21. Bxa8 {[%emt 0:00:05]} Be2 {[%emt 0:00:25]} 0-1

[Event "71st RUS-ch Higher League 2018"]
[Site "Yaroslavl"]
[Date "2018.06.30"]
[Round "5"]
[White "Sarana, Alexey"]
[Black "Timofeev, Artyom"]
[Result "1-0"]
[ECO "C67"]
[WhiteElo "2573"]
[BlackElo "2583"]
[Annotator "ChessBase"]
[PlyCount "163"]
[EventDate "2018.06.26"]
[EventType "swiss"]
[EventCountry "RUS"]
[SourceTitle "playchess.com"]
[Source "ChessBase"]
[SourceQuality "1"]
[TimeControl "40/5400+30:1800+30"]

1. e4 {[%emt 0:00:00]} e5 {[%emt 0:00:00]} 2. Nf3 {[%emt 0:00:00]} Nc6 {[%emt 0:00:00]} 3. Bb5 {[%emt 0:00:24]} Nf6 {[%emt 0:00:00]} 4. O-O {[%emt 0:03:14]} Nxe4 {[%emt 0:00:18]} 5. Re1 {[%emt 0:03:13]} Nd6 {[%emt 0:00:47]} 6. Nxe5 {[%emt 0:00:15]} Be7 {[%emt 0:00:10]} 7. Bf1 {[%emt 0:00:25]} Nxe5 {[%emt 0:00:41]} 8. Rxe5 {[%emt 0:00:44]} O-O {[%emt 0:00:10]} 9. d4 {[%emt 0:00:48]} Bf6 {[%emt 0:00:39]} 10. Re1 {[%emt 0:02:10]} Nf5 {[%emt 0:01:38]} 11. c3 {[%emt 0:00:27]} d5 {[%emt 0:02:06]} 12. Nd2 {[%emt 0:00:25]} Re8 {[%emt 0:04:05]} 13. Rxe8+ {[%emt 0:00:57]} Qxe8 {[%emt 0:00:08]} 14. Nf3 {[%emt 0:00:06]} Nh4 {[%emt 0:04:29]} 15. Nxh4 {[%emt 0:04:00]} Bxh4 {[%emt 0:00:06]} 16. Bf4 {[%emt 0:01:04]} c6 {[%emt 0:02:34]} 17. Bd3 {[%emt 0:00:21]} Bf6 {[%emt 0:02:39]} 18. Qb3 {[%emt 0:03:01]} Qe7 {[%emt 0:01:25]} 19. h3 {[%emt 0:00:52]} Be6 {[%emt 0:06:12]} 20. a4 {[%emt 0:00:45]} a5 {[%emt 0:01:32]} 21. Qb6 {[%emt 0:04:49]} Qd7 {[%emt 0:01:13]} 22. Qc7 {[%emt 0:00:14]} Bd8 {[%emt 0:04:26]} 23. Qxd7 {[%emt 0:00:11]} Bxd7 {[%emt 0:00:05]} 24. Bd6 {[%emt 0:00:09]} f5 {[%emt 0:06:29]} 25. f4 {[%emt 0:02:22]} Kf7 {[%emt 0:01:02]} 26. Kf2 {[%emt 0:00:17]} g6 {[%emt 0:02:53]} 27. Re1 {[%emt 0:00:50]} Be6 {[%emt 0:01:16]} 28. Kf3 {[%emt 0:00:14]} h5 {[%emt 0:00:38]} 29. g3 {[%emt 0:01:12]} Bb6 {[%emt 0:04:18]} 30. Rb1 {[%emt 0:00:35]} Bd8 {[%emt 0:00:52]} 31. Be5 {[%emt 0:00:14]} Ra7 {[%emt 0:04:10]} 32. b3 {[%emt 0:00:32]} Ra8 {[%emt 0:00:43]} 33. Bc2 {[%emt 0:02:50]} Bd7 {[%emt 0:08:46]} 34. c4 {[%emt 0:03:55]} Be7 {[%emt 0:03:43]} 35. c5 {[%emt 0:02:49]} Bd8 {[%emt 0:00:12]} 36. Bd3 {[%emt 0:01:07]} Ra7 {[%emt 0:01:02]} 37. Be2 {[%emt 0:01:20]} Ra8 {[%emt 0:02:49]} 38. Ke3 {[%emt 0:00:42]} Be6 {[%emt 0:03:17]} 39. Rh1 {[%emt 0:02:23]} Bf6 {[%emt 0:09:27]} 40. Bxf6 {[%emt 0:00:00]} Kxf6 {[%emt 0:00:00]} 41. Rb1 {[%emt 0:15:06]} Ke7 {[%emt 0:03:33]} 42. b4 {[%emt 0:02:28]} axb4 {[%emt 0:00:19]} 43. Rxb4 {[%emt 0:00:01]} Bc8 {[%emt 0:00:07]} 44. Kd2 {[%emt 0:04:14]} Kd8 {[%emt 0:00:43]} 45. Bd1 {[%emt 0:00:04]} Kc7 {[%emt 0:00:19]} 46. Bc2 {[%emt 0:00:12]} Bd7 {[%emt 0:08:12]} 47. Rb1 {[%emt 0:01:01]} Re8 {[%emt 0:01:06]} 48. Ra1 {[%emt 0:01:10]} Rh8 {[%emt 0:01:46]} 49. Re1 {[%emt 0:00:31]} h4 {[%emt 0:03:40]} 50. Rg1 {[%emt 0:00:42]} hxg3 {[%emt 0:00:10]} 51. Rxg3 {[%emt 0:00:04]} Rh4 {[%emt 0:00:20]} 52. Rf3 {[%emt 0:04:27]} b6 {[%emt 0:12:09]} 53. Kc3 {[%emt 0:05:05]} bxc5 {[%emt 0:10:08]} 54. dxc5 {[%emt 0:00:01]} Rh8 {[%emt 0:00:05]} 55. Kd4 {[%emt 0:02:35]} Rb8 {[%emt 0:00:57]} 56. Rb3 {[%emt 0:00:06]} Re8 {[%emt 0:00:09]} 57. Bd3 {[%emt 0:00:58]} Ra8 {[%emt 0:02:52]} 58. Ra3 {[%emt 0:00:29]} Ra5 {[%emt 0:00:30]} 59. Ra1 {[%emt 0:00:36]} Bc8 {[%emt 0:00:45]} 60. Kc3 {[%emt 0:01:43]} Kb8 {[%emt 0:00:36]} 61. Kd4 {[%emt 0:03:07]} Ra7 {[%emt 0:03:26]} 62. a5 {[%emt 0:05:45]} Rh7 {[%emt 0:00:07]} 63. Rb1+ {[%emt 0:05:25]} Ka7 {[%emt 0:02:47]} 64. Rb6 {[%emt 0:01:57]} Bd7 {[%emt 0:00:11]} 65. a6 {[%emt 0:04:49]} Be8 {[%emt 0:00:04]} 66. Rb2 {[%emt 0:01:03]} Ka8 {[%emt 0:00:44]} 67. Rb1 {[%emt 0:03:06]} Rh4 {[%emt 0:00:44]} 68. Ke5 {[%emt 0:12:33]} Rxh3 {[%emt 0:00:10]} 69. Bf1 {[%emt 0:00:05]} Rf3 {[%emt 0:02:33]} 70. Re1 {[%emt 0:01:29]} d4 {[%emt 0:00:54]} 71. Kd6 {[%emt 0:06:55]} Bf7 {[%emt 0:00:08]} 72. Bg2 {[%emt 0:06:07]} Bd5 {[%emt 0:00:07]} 73. Rd1 {[%emt 0:00:19]} g5 {[%emt 0:01:50]} 74. fxg5 {[%emt 0:02:10]} Rg3 {[%emt 0:03:36]} 75. Bxd5 {[%emt 0:00:14]} cxd5 {[%emt 0:00:04]} 76. c6 {[%emt 0:00:08]} Rxg5 {[%emt 0:00:05]} 77. c7 {[%emt 0:00:09]} Rg6+ {[%emt 0:00:48]} 78. Kd7 {[%emt 0:00:05]} Rg7+ {[%emt 0:00:06]} 79. Kc6 {[%emt 0:00:03]} Rg8 {[%emt 0:01:41]} 80. Rxd4 {[%emt 0:00:06]} Ka7 {[%emt 0:00:05]} 81. Rxd5 {[%emt 0:00:05]} Kxa6 {[%emt 0:00:43]} 82. Rd8 {[%emt 0:00:06]} 1-0